fUST/lending_fUST_20250311
["ID","MTS","AMOUNT","RATE_DAILY","PERIOD"]
[355876841,1741671042963,-700.32,0.0004614,120]
[355876843,1741671042973,-500.0,0.0004614,120]
[355876845,1741671042983,-787.2,0.0004614,120]
[355876847,1741671042995,-500.0,0.0004614,120]
[355876849,1741671043005,-500.0,0.0004614,120]
[355876851,1741671043015,-502.67641493,0.0004614,120]
[355876853,1741671043024,-511.10052344,0.0004614,120]
[355876855,1741671043034,-500.0,0.0004614,120]
[355876857,1741671043043,-500.0,0.0004614,120]
[355876859,1741671043052,-500.0,0.0004614,120]
[355876861,1741671043062,-500.0,0.0004614,120]
[355876863,1741671043072,-500.0,0.0004614,120]
[355876865,1741671043082,-500.0,0.0004614,120]
[355876867,1741671043092,-619.85,0.0004614,120]
[355876869,1741671043102,-520.07846934,0.0004614,120]
[355876871,1741671043112,-500.0,0.0004614,120]
[355876873,1741671043122,-500.0,0.0004614,120]
[355876875,1741671043132,-500.0,0.0004614,120]
[355876878,1741671043142,-500.0,0.0004614,120]
[355876881,1741671043156,-1082.17,0.0004614,120]
[355876883,1741671043166,-500.0,0.0004614,120]
[355876887,1741671043176,-500.0,0.0004614,120]
[355876890,1741671043185,-500.0,0.0004614,120]
[355876893,1741671043195,-818.96,0.0004614,120]
[355876895,1741671043204,-905.08,0.0004614,120]
[355876898,1741671043214,-1180.37,0.0004614,120]
[355876901,1741671043224,-500.0,0.0004614,120]
[355876904,1741671043233,-1000.0,0.0004614,120]
[355876906,1741671043243,-897.8,0.0004614,120]
[355876908,1741671043252,-565.49908473,0.0004614,120]
[355876910,1741671043261,-594.8,0.0004614,120]
[355876912,1741671043271,-1103.68,0.0004614,120]
[355876914,1741671043280,-1089.22,0.0004614,120]
[355876916,1741671043290,-649.93,0.0004614,120]
[355876918,1741671043300,-1157.05,0.0004614,120]
[355876920,1741671043310,-887.63,0.0004614,120]
[355876922,1741671043319,-500.0,0.0004614,120]
[355876924,1741671043329,-1896.94,0.0004614,120]
[355876926,1741671043338,-500.0,0.0004614,120]
[355876928,1741671043347,-959.31,0.0004614,120]
[355876930,1741671043356,-500.0,0.00046142,120]
[355876932,1741671043366,-180.82,0.00046142,30]
[355876934,1741671043376,-500.0,0.00046142,30]
[355876936,1741671043386,-559.47,0.00046142,120]
[355876938,1741671043397,-500.0,0.00046142,120]
[355876940,1741671043410,-500.0,0.00046142,120]
[355876942,1741671043419,-500.0,0.00046142,120]
[355876943,1741671043428,-188.0,0.00046142,120]
[355876945,1741671043437,-406.16837293,0.00046142,120]
[355876947,1741671043447,-761.64,0.00046142,120]
[355876949,1741671043456,-500.0,0.00046142,120]
[355876951,1741671043465,-500.0,0.00046142,120]
[355876953,1741671043474,-500.0,0.00046142,120]
[355876971,1741671043622,-500.0,0.00046142,120]
[355876974,1741671043659,-508.00360239,0.00046142,120]
[355876976,1741671043669,-560.49099767,0.00046142,20]
[355876978,1741671043679,-500.0,0.00046142,120]
[355876980,1741671043689,-500.0,0.00046142,120]
[355876982,1741671043699,-500.0,0.00046142,120]
[355876984,1741671043708,-500.0,0.00046142,120]
[355876986,1741671043719,-514.44376667,0.00046142,120]
[355876988,1741671043728,-500.0,0.00046142,120]
[355876990,1741671043738,-500.0,0.00046142,120]
[355876992,1741671043748,-500.0,0.00046142,120]
[355876994,1741671043758,-535.54234845,0.00046142,120]
[355876996,1741671043769,-500.0,0.00046142,120]
[355876998,1741671043779,-510.99807772,0.00046142,120]
[355877000,1741671043790,-500.0,0.00046142,120]
[355877002,1741671043800,-500.0,0.00046142,120]
[355877004,1741671043810,-500.0,0.00046142,120]
[355877006,1741671043822,-598.6,0.00046142,120]
[355877009,1741671043833,-500.0,0.00046142,120]
[355877010,1741671043844,-500.0,0.00046142,120]
[355877012,1741671043854,-500.0,0.00046142,120]
[355877014,1741671043865,-517.39590568,0.00046142,120]
[355877017,1741671043877,-481.60413132,0.00046142,120]
[355877018,1741671043888,-535.75144631,0.00046142,120]
[355877021,1741671043905,-500.0,0.00046142,120]
[355877022,1741671043919,-500.0,0.00046142,120]
[355877024,1741671043930,-500.0,0.00046142,120]
[355877026,1741671043943,-300.0,0.00046142,120]
[355877028,1741671043953,-500.0,0.00046142,120]
[355877030,1741671043964,-500.0,0.00046142,120]
[355877032,1741671043976,-500.0,0.00046142,120]
[355877035,1741671043987,-500.0,0.00046142,120]
[355877036,1741671043999,-500.0,0.00046142,120]
[355877038,1741671044010,-500.0,0.00046142,120]
[355877040,1741671044020,-760.76,0.00046142,120]
[355877042,1741671044030,-500.0,0.00046142,120]
[355877044,1741671044040,-500.0,0.00046142,120]
[355877046,1741671044051,-552.12977254,0.00046142,120]
[355877048,1741671044061,-500.0,0.00046142,120]
[355877051,1741671044073,-1000.0,0.00046142,20]
[355877053,1741671044084,-500.0,0.00046142,120]
[355877055,1741671044095,-500.0,0.00046142,120]
[355877057,1741671044105,-500.0,0.00046142,120]
[355877059,1741671044116,-500.0,0.00046142,120]
[355877061,1741671044127,-447.21921521,0.00046142,120]
[355877063,1741671044138,-1312.16,0.00046142,120]
[355877065,1741671044155,-500.0,0.00046142,120]
[355877067,1741671044165,-500.0,0.00046142,120]
[355877069,1741671044175,-526.6617665,0.00046142,120]
[355877071,1741671044186,-941.09,0.00046142,120]
[355877073,1741671044195,-537.16681621,0.00046142,14]
[355877075,1741671044206,-500.0,0.00046142,120]
[355877077,1741671044215,-500.0,0.00046142,120]
[355877079,1741671044227,-500.0,0.00046142,120]
[355877081,1741671044237,-669.14,0.00046142,120]
[355877083,1741671044247,-823.88,0.00046142,120]
[355877085,1741671044257,-500.0,0.00046142,120]
[355877087,1741671044268,-1292.1,0.00046142,120]
[355877089,1741671044279,-538.93236233,0.00046142,120]
[355877091,1741671044290,-966.47,0.00046142,120]
[355877093,1741671044300,-500.0,0.00046142,120]
[355877095,1741671044311,-475.12603792,0.00046142,120]
[355877097,1741671044321,-500.0,0.00046142,120]
[355877099,1741671044333,-500.0,0.00046142,120]
[355877101,1741671044343,-550.04285952,0.00046142,120]
[355877103,1741671044353,-531.33,0.00046142,120]
[355877105,1741671044363,-500.0,0.00046142,120]
[355877107,1741671044373,-441.0082024,0.00046142,20]
[355877109,1741671044383,-500.0,0.00046142,120]
[355877111,1741671044393,-500.0,0.00046142,120]
[355877113,1741671044407,-500.0,0.00046142,120]
[355877115,1741671044416,-506.90111563,0.00046142,120]
[355877117,1741671044425,-500.0,0.00046142,120]
[355877119,1741671044435,-500.0,0.00046142,120]
[355877121,1741671044444,-857.32,0.00046142,120]
[355877123,1741671044454,-500.0,0.00046142,120]
[355877125,1741671044464,-500.0,0.00046142,120]
[355877127,1741671044474,-554.0998336,0.00046142,120]
[355877129,1741671044484,-500.0,0.00046142,120]
[355877131,1741671044494,-500.0,0.00046142,120]
[355877133,1741671044503,-500.0,0.00046142,120]
[355877136,1741671044513,-534.37038516,0.00046142,120]
[355877138,1741671044523,-500.0,0.00046142,120]
[355877140,1741671044532,-500.0,0.00046142,120]
[355877142,1741671044542,-500.0,0.00046142,120]
[355877144,1741671044551,-519.4552829,0.00046142,120]
[355877146,1741671044560,-500.0,0.00046142,120]
[355877148,1741671044570,-500.0,0.00046142,120]
[355877150,1741671044580,-1224.92,0.00046142,120]
[355877152,1741671044590,-942.57,0.00046142,120]
[355877154,1741671044599,-511.33507312,0.00046142,120]
[355877156,1741671044609,-500.0,0.00046142,120]
[355877158,1741671044619,-500.0,0.00046142,120]
[355877160,1741671044629,-500.0,0.00046142,120]
[355877162,1741671044639,-500.0,0.00046142,30]
[355877164,1741671044649,-500.0,0.00046142,120]
[355877166,1741671044659,-479.03597165,0.00046142,120]
[355877168,1741671044668,-895.39,0.00046142,120]
[355877170,1741671044678,-535.01994078,0.00046142,120]
[355877172,1741671044687,-500.0,0.00046142,120]
[355877174,1741671044697,-500.0,0.00046142,120]
[355877176,1741671044706,-500.0,0.00046142,120]
[355877178,1741671044716,-500.0,0.00046142,120]
[355877180,1741671044725,-669.0945918,0.0004618,2]
[355877182,1741671044735,-693.8510917,0.00046235,2]
[355877184,1741671044744,-500.0,0.0004626,120]
[355877186,1741671044754,-514.73343488,0.0004626,120]
[355877188,1741671044763,-567.23,0.0004626,120]
[355877190,1741671044772,-500.0,0.0004626,120]
[355877192,1741671044782,-7238.45,0.0004627,120]
[355877194,1741671044791,-523.05207003,0.0004627,120]
[355877196,1741671044801,-1569.0,0.0004627,120]
[355877198,1741671044811,-1378.14,0.0004627,7]
[355877200,1741671044820,-845.2,0.0004627,120]
[355877202,1741671044830,-885.59,0.0004627,120]
[355877204,1741671044839,-16131.53,0.0004627,2]
[355877206,1741671044849,-500.0,0.0004627,2]
[355877208,1741671044858,-500.0,0.0004627,120]
[355877210,1741671044868,-500.0,0.0004627,120]
[355877212,1741671044877,-617.21,0.0004627,2]
[355877214,1741671044887,-719.52358209,0.0004629,2]
[355877216,1741671044900,-500.0,0.00046315,120]
[355877218,1741671044912,-22250.56,0.00046315,120]
[355877220,1741671044922,-592.99,0.00046315,120]
[355877222,1741671044931,-1784.43,0.00046315,120]
[355877224,1741671044942,-500.0,0.00046315,21]
[355877226,1741671044951,-2403.08,0.00046315,120]
[355877228,1741671044961,-1045.13,0.00046315,120]
[355877230,1741671044971,-8548.42968324,0.00046315,2]
[355877232,1741671044983,-1839.17,0.00046315,120]
[355877234,1741671044994,-500.0,0.00046315,120]
[355877236,1741671045003,-3487.62,0.00046315,120]
[355877239,1741671045013,-4582.13,0.00046315,120]
[355877241,1741671045023,-500.0,0.00046315,120]
[355877243,1741671045033,-500.0,0.00046315,120]
[355877245,1741671045043,-7871.43,0.00046315,120]
[355877246,1741671045052,-2636.81,0.00046315,120]
[355877249,1741671045062,-4079.66,0.00046315,120]
[355877250,1741671045072,-500.0,0.00046315,120]
[355877253,1741671045081,-834.37,0.00046315,120]
[355877254,1741671045091,-500.0,0.00046315,120]
[355877256,1741671045101,-1713.18,0.00046315,120]
[355877258,1741671045110,-500.0,0.00046315,120]
[355877260,1741671045120,-514.21,0.00046315,120]
[355877262,1741671045129,-500.0,0.00046315,120]
[355877264,1741671045139,-1611.7,0.00046315,120]
[355877266,1741671045150,-919.23,0.00046315,120]
[355877269,1741671045159,-564.03,0.00046315,30]
[355877270,1741671045169,-1236.69,0.00046315,120]
[355877273,1741671045178,-1013.145051,0.00046315,120]
[355877275,1741671045188,-7058.45,0.00046315,120]
[355877276,1741671045198,-1013.145051,0.00046315,120]
[355877279,1741671045208,-5675.67,0.00046315,120]
[355877281,1741671045217,-784.36,0.00046315,120]
[355877283,1741671045226,-500.0,0.00046316,120]
[355877285,1741671045236,-500.0,0.00046316,120]
[355877287,1741671045246,-899.35,0.00046316,120]
[355877289,1741671045255,-500.0,0.00046316,120]
[355877291,1741671045265,-563.47625409,0.00046316,120]
[355877293,1741671045274,-500.0,0.00046316,120]
[355877295,1741671045283,-500.0,0.00046316,120]
[355877297,1741671045293,-338.89689387,0.00046316,120]
[355877299,1741671045303,-500.0,0.00046316,120]
[355877301,1741671045313,-500.0,0.00046316,120]
[355877303,1741671045322,-500.0,0.00046316,120]
[355877305,1741671045332,-500.0,0.00046316,120]
[355877307,1741671045342,-919.81,0.00046316,120]
[355877309,1741671045352,-500.0,0.00046316,120]
[355877311,1741671045361,-908.76,0.00046316,120]
[355877313,1741671045370,-500.0,0.00046316,120]
[355877315,1741671045380,-500.0,0.00046316,120]
[355877317,1741671045389,-500.0,0.00046316,120]
[355877319,1741671045400,-500.0,0.00046316,120]
[355877321,1741671045410,-500.0,0.00046316,120]
[355877322,1741671045419,-1000.0,0.00046316,5]
[355877324,1741671045428,-500.0,0.00046316,120]
[355877326,1741671045438,-478.22724567,0.00046316,120]
[355877329,1741671045448,-500.0,0.00046316,120]
[355877331,1741671045458,-500.0,0.00046316,120]
[355877333,1741671045468,-1113.59,0.00046316,120]
[355877336,1741671045477,-582.15,0.00046316,120]
[355877338,1741671045486,-500.0,0.00046316,120]
[355877342,1741671045496,-500.0,0.00046316,120]
[355877343,1741671045505,-500.0,0.00046316,120]
[355877345,1741671045515,-868.05,0.00046316,120]
[355877347,1741671045525,-500.0,0.00046316,120]
[355877349,1741671045535,-500.0,0.00046316,120]
[355877351,1741671045544,-599.28975926,0.00046316,120]
[355877353,1741671045554,-500.0,0.00046316,120]
[355877355,1741671045564,-505.88,0.00046316,120]
[355877357,1741671045573,-890.8,0.00046316,120]
[355877359,1741671045583,-516.61,0.00046316,120]
[355877361,1741671045592,-500.0,0.00046316,120]
[355877363,1741671045602,-500.0,0.00046316,120]
[355877365,1741671045611,-500.0,0.00046316,120]
[355877367,1741671045621,-500.0,0.00046316,120]
[355877369,1741671045631,-500.0,0.00046316,120]
[355877371,1741671045641,-509.09362513,0.00046316,120]
[355877373,1741671045651,-500.0,0.00046316,120]
[355877375,1741671045660,-500.0,0.00046316,120]
[355877377,1741671045670,-500.0,0.00046316,120]
[355877379,1741671045680,-894.63,0.00046316,120]
[355877381,1741671045689,-500.0,0.00046316,120]
[355877383,1741671045700,-500.0,0.00046316,120]
[355877388,1741671045843,-500.0,0.00046316,120]
[355877389,1741671045872,-500.0,0.00046316,120]
[355877390,1741671045882,-500.0,0.00046316,120]
[355877391,1741671045892,-524.45831164,0.00046316,120]
[355877392,1741671045903,-531.85443734,0.00046316,120]
[355877393,1741671045915,-500.0,0.00046316,120]
[355877394,1741671045927,-500.0,0.00046316,120]
[355877395,1741671045937,-500.0,0.00046316,120]
[355877396,1741671045946,-500.0,0.00046316,5]
[355877397,1741671045956,-500.0,0.00046316,120]
[355877398,1741671045966,-500.0,0.00046316,120]
[355877399,1741671045976,-500.0,0.00046316,120]
[355877400,1741671045986,-746.0,0.00046316,120]
[355877401,1741671045998,-500.0,0.00046316,120]
[355877402,1741671046007,-613.72696604,0.00046316,120]
[355877403,1741671046017,-500.0,0.00046316,120]
[355877404,1741671046026,-500.0,0.00046316,120]
[355877405,1741671046036,-500.0,0.00046316,120]
[355877406,1741671046046,-515.82075638,0.00046316,120]
[355877407,1741671046055,-500.0,0.00046316,120]
[355877408,1741671046065,-496.26622044,0.00046316,120]
[355877409,1741671046074,-500.0,0.00046316,120]
[355877410,1741671046085,-500.0,0.00046316,120]
[355877411,1741671046095,-500.0,0.00046316,120]
[355877412,1741671046105,-3743.28,0.00046316,120]
[355877413,1741671046115,-500.0,0.00046316,120]
[355877414,1741671046124,-500.0,0.00046316,120]
[355877415,1741671046134,-505.45,0.00046316,120]
[355877416,1741671046144,-500.0,0.00046316,120]
[355877417,1741671046155,-404.58388156,0.00046316,120]
[355877418,1741671046165,-500.0,0.00046316,120]
[355877419,1741671046175,-500.0,0.00046316,120]
[355877420,1741671046185,-542.55082414,0.00046316,120]
[355877421,1741671046196,-1078.5,0.00046316,120]
[355877422,1741671046206,-500.0,0.00046316,120]
[355877423,1741671046215,-500.0,0.00046316,120]
[355877424,1741671046225,-500.0,0.00046316,120]
[355877425,1741671046235,-500.0,0.00046316,120]
[355877426,1741671046245,-500.0,0.00046316,120]
[355877427,1741671046255,-500.0,0.00046316,120]
[355877428,1741671046265,-1501.0,0.00046316,120]
[355877429,1741671046275,-500.0,0.00046316,120]
[355877430,1741671046285,-500.0,0.00046316,120]
[355877431,1741671046294,-7363.7,0.00046316,120]
[355877432,1741671046304,-500.0,0.00046316,120]
[355877433,1741671046313,-500.0,0.00046316,120]
[355877434,1741671046323,-500.0,0.00046316,120]
[355877435,1741671046333,-578.02,0.00046316,120]
[355877436,1741671046342,-222.31654125,0.00046316,120]
[355877437,1741671046351,-512.4377387,0.00046316,120]
[355877438,1741671046361,-500.0,0.00046316,120]
[355877439,1741671046371,-871.06,0.00046316,2]
[355877440,1741671046380,-500.0,0.00046316,120]
[355877441,1741671046390,-500.0,0.00046316,120]
[355877442,1741671046401,-500.0,0.00046316,120]
[355877443,1741671046412,-874.26,0.00046316,120]
[355877444,1741671046424,-500.0,0.00046316,120]
[355877445,1741671046435,-500.0,0.00046316,120]
[355877446,1741671046445,-190050.6,0.00046316,7]
[355877447,1741671046456,-500.0,0.00046316,120]
[355877448,1741671046467,-500.0,0.00046316,120]
[355877449,1741671046478,-500.0,0.00046316,120]
[355877450,1741671046488,-398.02238085,0.00046316,120]
[355877451,1741671046499,-500.0,0.00046316,120]
[355877452,1741671046510,-500.0,0.00046316,120]
[355877453,1741671046521,-500.0,0.00046316,120]
[355877454,1741671046531,-500.0,0.00046316,120]
[355877455,1741671046542,-500.0,0.00046316,120]
[355877456,1741671046552,-1088.86,0.00046316,120]
[355877457,1741671046562,-1705.27,0.00046316,120]
[355877458,1741671046572,-1143.53,0.00046316,120]
[355877459,1741671046582,-523.91657386,0.00046316,120]
[355877460,1741671046592,-1013.85,0.00046316,120]
[355877461,1741671046602,-500.0,0.00046316,120]
[355877462,1741671046612,-1940.74,0.00046316,120]
[355877463,1741671046622,-500.0,0.00046316,120]
[355877464,1741671046632,-559.07,0.00046316,120]
[355877465,1741671046642,-500.0,0.00046316,120]
[355877466,1741671046656,-5871.79,0.00046316,60]
[355877467,1741671046666,-500.0,0.00046316,120]
[355877468,1741671046676,-6071.21,0.00046316,120]
[355877469,1741671046686,-1799.41,0.00046316,120]
[355877470,1741671046696,-500.0,0.00046316,120]
[355877471,1741671046705,-1087.16,0.00046316,120]
[355877472,1741671046717,-500.0,0.00046316,120]
[355877473,1741671046728,-931.28,0.00046316,120]
[355877474,1741671046739,-500.0,0.00046316,120]
[355877475,1741671046748,-500.0,0.00046316,120]
[355877476,1741671046758,-500.0,0.00046316,120]
[355877477,1741671046767,-500.0,0.00046316,120]
[355877478,1741671046776,-500.0,0.00046316,120]
[355877479,1741671046786,-315.1667909,0.00046316,120]
[355877480,1741671046795,-500.0,0.00046316,120]
[355877481,1741671046806,-623.32,0.00046316,120]
[355877482,1741671046815,-1200.3,0.00046316,120]
[355877483,1741671046825,-748.08,0.00046316,120]
[355877484,1741671046834,-500.0,0.00046316,120]
[355877485,1741671046844,-500.0,0.00046316,120]
[355877486,1741671046853,-500.12,0.00046316,120]
[355877487,1741671046863,-500.0,0.00046316,120]
[355877488,1741671046871,-1138.31,0.00046316,120]
[355877489,1741671046881,-4555.02,0.00046316,120]
[355877490,1741671046891,-1148.83,0.00046316,120]
[355877491,1741671046907,-500.0,0.00046316,120]
[355877492,1741671046916,-500.0,0.00046316,120]
[355877493,1741671046926,-500.0,0.00046316,120]
[355877494,1741671046936,-500.0,0.00046316,30]
[355877495,1741671046947,-500.0,0.00046316,120]
[355877496,1741671046957,-1609.36,0.00046316,120]
[355877497,1741671046968,-969.75,0.00046316,120]
[355877498,1741671046980,-516.38103646,0.00046316,120]
[355877499,1741671046989,-757.16,0.00046316,120]
[355877500,1741671046999,-939.72,0.00046316,120]
[355877501,1741671047009,-500.0,0.00046316,120]
[355877502,1741671047019,-500.0,0.00046316,120]
[355877503,1741671047029,-24486.33,0.00046316,120]
[355877504,1741671047039,-666.05,0.00046316,120]
[355877505,1741671047049,-500.0,0.00046316,120]
[355877506,1741671047059,-500.0,0.00046316,120]
[355877507,1741671047070,-500.0,0.00046316,120]
[355877508,1741671047080,-500.0,0.00046316,120]
[355877509,1741671047090,-500.0,0.00046316,120]
[355877510,1741671047100,-500.0,0.00046316,120]
[355877511,1741671047110,-500.0,0.00046316,120]
[355877512,1741671047121,-500.0,0.00046316,120]
[355877513,1741671047130,-500.0,0.00046316,120]
[355877514,1741671047140,-1755.39,0.00046316,120]
[355877515,1741671047151,-853.36,0.00046316,120]
[355877516,1741671047161,-522.35575196,0.00046316,120]
[355877517,1741671047171,-500.0,0.00046316,120]
[355877518,1741671047180,-500.0,0.00046316,120]
[355877519,1741671047190,-529.21616675,0.00046316,120]
[355877520,1741671047199,-500.0,0.00046316,120]
[355877521,1741671047209,-500.0,0.00046316,120]
[355877522,1741671047218,-646.4,0.00046316,120]
[355877523,1741671047228,-941.02,0.00046316,120]
[355877524,1741671047238,-1497.87,0.00046316,120]
[355877525,1741671047248,-500.0,0.00046316,120]
[355877526,1741671047257,-1491.39,0.00046316,120]
[355877527,1741671047267,-507.55971957,0.00046316,120]
[355877528,1741671047277,-500.0,0.00046316,120]
[355877529,1741671047286,-896.08,0.00046316,120]
[355877530,1741671047296,-7116.89,0.00046316,120]
[355877531,1741671047306,-509.68737836,0.00046316,120]
[355877532,1741671047316,-500.0,0.00046316,120]
[355877533,1741671047326,-845.87,0.00046316,120]
[355877534,1741671047336,-509.90756306,0.00046316,120]
[355877535,1741671047347,-1129.2,0.00046316,120]
[355877536,1741671047357,-500.0,0.00046316,120]
[355877537,1741671047368,-500.0,0.00046316,120]
[355877538,1741671047378,-1011.13,0.00046316,120]
[355877539,1741671047388,-500.0,0.00046316,120]
[355877540,1741671047398,-500.0,0.00046316,120]
[355877541,1741671047411,-500.0,0.00046316,120]
[355877542,1741671047422,-1460.53,0.00046316,120]
[355877543,1741671047433,-3479.02,0.00046316,120]
[355877544,1741671047443,-500.0,0.00046316,120]
[355877545,1741671047453,-500.0,0.00046316,120]
[355877546,1741671047464,-500.0,0.00046316,120]
[355877547,1741671047475,-500.0,0.00046316,120]
[355877548,1741671047486,-500.0,0.00046316,120]
[355877549,1741671047496,-317.43756647,0.00046316,120]
[355877550,1741671047505,-3068.76,0.00046316,120]
[355877551,1741671047516,-500.0,0.00046316,120]
[355877552,1741671047528,-1263.27,0.00046316,120]
[355877553,1741671047538,-791.66,0.00046316,120]
[355877554,1741671047548,-500.0,0.00046316,120]
[355877555,1741671047558,-500.0,0.00046316,120]
[355877556,1741671047569,-500.0,0.00046316,120]
[355877557,1741671047579,-500.0,0.00046316,120]
[355877558,1741671047589,-885.15,0.00046316,120]
[355877559,1741671047599,-500.0,0.00046316,120]
[355877560,1741671047609,-832.02,0.00046316,120]
[355877561,1741671047618,-513.22324505,0.00046316,2]
[355877562,1741671047628,-2980.32,0.00046316,120]
[355877563,1741671047638,-500.0,0.00046316,120]
[355877564,1741671047648,-1013.145051,0.00046316,120]
[355877565,1741671047662,-1013.145051,0.00046316,120]
[355877566,1741671047672,-508.62229791,0.00046316,2]
[355877567,1741671047683,-500.0,0.00046316,120]
[355877568,1741671047693,-1013.145051,0.00046316,120]
[355877569,1741671047703,-1013.145051,0.00046316,120]
[355877570,1741671047712,-500.0,0.00046316,120]
[355877571,1741671047722,-627.35,0.00046316,120]
[355877572,1741671047732,-500.0,0.00046316,120]
[355877573,1741671047742,-500.0,0.00046316,120]
[355877574,1741671047752,-543.11,0.00046316,120]
[355877575,1741671047762,-847.37,0.00046316,120]
[355877576,1741671047925,-848.52,0.00046316,120]
[355877577,1741671047936,-746.14595463,0.00046345,2]
[355877578,1741671047947,-548.31680066,0.00046373,7]
[355877579,1741671047959,-151.33362888,0.00046373,10]
[355877580,1741671047969,-502.17573148,0.00046373,10]
[355877581,1741671047979,-524.55119073,0.00046373,10]
[355877582,1741671047990,-529.85672064,0.00046373,7]
[355877583,1741671048000,-500.0,0.00046373,10]
[355877584,1741671048011,-500.0,0.00046373,10]
[355877585,1741671048020,-500.0,0.00046373,10]
[355877586,1741671048030,-500.0,0.00046373,10]
[355877587,1741671048040,-500.0,0.00046373,10]
[355877588,1741671048050,-371.66504729,0.00046373,7]
[355877589,1741671048060,-500.0,0.00046373,10]
[355877590,1741671048070,-500.0,0.00046373,10]
[355877591,1741671048080,-500.0,0.00046373,10]
[355877592,1741671048090,-500.0,0.00046373,10]
[355877593,1741671048099,-502.14187634,0.00046373,10]
[355877594,1741671048109,-500.0,0.00046373,10]
[355877595,1741671048119,-500.0,0.00046373,10]
[355877596,1741671048128,-298.89073316,0.00046373,10]
[355877597,1741671048138,-500.0,0.00046373,10]
[355877598,1741671048148,-500.0,0.00046373,10]
[355877599,1741671048161,-500.0,0.00046373,10]
[355877600,1741671048171,-505.50999603,0.00046373,10]
[355877601,1741671048182,-773.75335495,0.000464,2]
[355877602,1741671048192,-500.0,0.00046414,120]
[355877603,1741671048202,-500.0,0.00046414,120]
[355877604,1741671048212,-500.0,0.00046414,120]
[355877605,1741671048222,-500.0,0.00046414,120]
[355877606,1741671048232,-1000.0,0.00046414,90]
[355877607,1741671048242,-500.0,0.00046414,120]
[355877608,1741671048253,-1071.99,0.00046414,120]
[355877609,1741671048262,-500.0,0.00046414,120]
[355877610,1741671048272,-859.8,0.00046414,120]
[355877611,1741671048281,-500.0,0.00046414,120]
[355877612,1741671048291,-500.0,0.00046414,120]
[355877613,1741671048301,-903.23,0.00046414,120]
[355877614,1741671048310,-517.57874171,0.00046414,120]
[355877615,1741671048320,-500.0,0.00046414,120]
[355877616,1741671048330,-500.0,0.00046414,120]
[355877617,1741671048340,-500.0,0.00046414,120]
[355877618,1741671048350,-500.0,0.00046414,120]
[355877619,1741671048365,-500.0,0.00046414,120]
[355877620,1741671048375,-697.55,0.00046414,120]
[355877621,1741671048385,-374.87388514,0.00046414,120]
[355877622,1741671048394,-866.02,0.00046414,120]
[355877623,1741671048406,-700.32,0.00046414,120]
[355877624,1741671048416,-500.0,0.00046414,120]
[355877625,1741671048426,-787.2,0.00046414,120]
[355877626,1741671048436,-500.0,0.00046414,120]
[355877627,1741671048446,-531.25141596,0.00046414,120]
[355877628,1741671048456,-500.0,0.00046414,120]
[355877629,1741671048466,-500.0,0.00046414,120]
[355877630,1741671048476,-500.0,0.00046414,120]